bitfinex/quotes_ETHUSD_20220112
["timestamp","ask_amount","ask_price","bid_price","bid_amount"]
[1642013531698,6.94371838,3369.8,3368.4,2.22548]
[1642013531886,6.94371838,3369.8,3368.2,0.90975699]
[1642013531887,0.01281597,3369.0,3368.2,0.90975699]
[1642013532085,0.01281597,3369.0,3368.5,0.00625266]
[1642013532086,1.20411597,3369.0,3368.5,0.00625266]
[1642013532291,1.80411597,3369.0,3368.5,0.00625266]
[1642013532486,1.80411597,3369.0,3368.5,1.115249]
[1642013532731,1.4913,3369.0,3368.6,1.25644961]
[1642013532925,1.4913,3369.0,3368.6,1.26213385]
[1642013533125,2.54267864,3368.9,3368.7,0.00511581]
[1642013533327,2.84267864,3368.9,3368.7,0.00511581]
[1642013533526,2.84267864,3368.9,3367.4,3.1395219]
[1642013533527,4.82813961,3368.8,3367.4,3.1395219]
[1642013533725,4.1036,3368.8,3367.7,0.00568424]
[1642013533925,4.1036,3368.8,3367.7,0.74785424]
[1642013534133,5.48067261,3368.8,3367.7,0.74217]
[1642013534333,1.0,3368.7,3367.8,0.00511581]
[1642013534531,1.0,3368.7,3367.2,1.0256716]
[1642013534532,1.49663983,3368.3,3367.2,1.0256716]
[1642013534731,0.01244697,3367.5,3367.2,1.0256716]
[1642013534930,0.01244697,3367.5,3367.3,0.00284212]
[1642013534931,0.78694697,3367.5,3367.3,0.00284212]
[1642013535132,0.7745,3367.5,3367.3,0.00284212]
[1642013535332,0.7745,3367.5,3367.4,1.15476159]
[1642013535735,0.7745,3367.5,3367.4,1.15703529]
[1642013536332,0.7745,3367.5,3367.4,0.0022737]
[1642013536976,0.2245,3367.6,3367.4,0.0022737]
[1642013537176,0.2245,3367.6,3367.4,1.12835872]
[1642013537375,0.2245,3367.6,3367.4,2.63018257]
[1642013537574,0.2245,3367.6,3367.5,0.00170527]
[1642013538582,0.00227369,3368.2,3367.5,0.00170527]
[1642013538778,0.00227369,3368.2,3367.5,1.00170527]
[1642013538979,0.00170527,3368.1,3367.5,1.00170527]
[1642013539184,0.00170527,3368.1,3367.6,0.00113685]
[1642013539388,0.00113684,3368.0,3367.6,0.00113685]
[1642013539785,5.50636731,3368.7,3368.2,1.17805484]
[1642013539786,0.00284211,3368.3,3368.2,1.17805484]
[1642013539988,0.00284211,3368.3,3367.8,0.74208]
[1642013540226,0.00454738,3368.3,3367.8,0.74208]
[1642013540419,0.00227369,3368.2,3367.8,0.74208]
[1642013540819,0.00170527,3368.1,3367.8,0.74208]
[1642013541320,3.6092,3368.9,3367.8,0.74208]
[1642013541321,0.00113684,3368.0,3367.8,0.74208]
[1642013541722,0.00568423,3368.8,3367.8,0.74208]
[1642013541929,0.00568423,3368.8,3367.9,3.44268416]
[1642013542224,0.00511581,3368.7,3368.3,0.74191]
[1642013542422,0.00511581,3368.7,3368.3,0.64191]
[1642013542620,0.00454738,3368.6,3368.3,1.64191]
[1642013542821,0.00454738,3368.6,3368.3,5.25815311]
[1642013543022,0.00397896,3368.5,3368.3,1.94191]
[1642013543420,0.00341054,3368.4,3368.3,1.94191]
[1642013544004,0.00341054,3368.4,3368.3,0.64191]
[1642013545410,0.1187,3369.5,3368.3,3.99260082]
[1642013545610,0.1187,3369.5,3368.9,0.7418]
[1642013545811,0.00397896,3369.1,3368.9,0.7418]
[1642013546014,0.00397896,3369.1,3368.9,1.1668]
[1642013546310,0.00341054,3369.0,3368.9,2.50571518]
[1642013546510,0.00341054,3369.0,3368.9,3.96724407]
[1642013546711,0.00625266,3369.0,3368.9,3.96724407]
[1642013547315,0.00625266,3369.0,3368.9,3.54224407]
[1642013547515,0.00625266,3369.0,3368.9,0.7418]
[1642013547735,3.90625266,3369.0,3368.8,1.4836]
[1642013548130,0.00284212,3368.9,3368.8,1.4836]
[1642013548331,0.00284212,3368.9,3368.1,0.425]
[1642013548531,0.1187,3368.8,3368.4,1.54112517]
[1642013548731,0.02489861,3368.7,3368.4,1.54112517]
[1642013548931,0.00170527,3368.7,3368.4,1.54112517]
[1642013549136,0.00113684,3368.6,3368.5,1.38957608]
[1642013550337,2.54501201,3368.9,3368.6,3.9]
[1642013550545,2.54501201,3368.9,3368.7,0.425]
[1642013550739,1.49401614,3369.8,3368.7,0.425]
[1642013550740,0.00113685,3368.8,3368.7,4.76959751]
[1642013551036,4.0811,3369.7,3369.2,1.48333]
[1642013551237,4.0811,3369.7,3369.3,1.35008699]
[1642013551475,4.08621581,3369.7,3369.3,1.35008699]
[1642013552079,4.08621581,3369.7,3369.6,1.38473984]
[1642013552276,0.00511581,3369.7,3369.4,0.74166]
[1642013552677,0.00454739,3369.6,3369.4,0.74166]
[1642013553076,0.00397897,3369.5,3369.4,0.74166]
[1642013553874,0.00397897,3369.5,3369.4,2.22169203]
[1642013555328,3.8379,3370.2,3369.5,6.15]
[1642013555527,3.8379,3370.2,3370.0,0.7416]
[1642013555721,0.00341054,3370.1,3370.0,0.7416]
[1642013556124,0.00568423,3370.5,3370.0,2.10092599]
[1642013556421,0.00511581,3370.4,3370.1,0.425]
[1642013556722,0.00454738,3370.3,3370.1,0.425]
[1642013556920,0.00454738,3370.3,3370.2,1.48308]
[1642013557121,1.61261614,3370.6,3370.2,1.48308]
[1642013557122,1.62547256,3370.6,3370.2,1.48308]
[1642013557421,0.00568423,3370.5,3370.2,1.48308]
[1642013557820,0.13145642,3370.6,3370.2,1.48308]
[1642013557821,0.00511581,3370.4,3370.2,1.48308]
[1642013558221,3.90454738,3370.3,3370.2,1.48308]
[1642013558627,0.00454738,3370.3,3370.0,0.29545269]
[1642013559086,0.00397896,3370.2,3370.1,1.48307]
[1642013559486,2.45397896,3370.2,3370.1,1.48307]
[1642013560292,0.00397896,3370.2,3370.1,1.48307]
[1642013560488,2.25397896,3370.2,3370.1,1.48307]
[1642013562292,0.00397896,3370.2,3370.1,1.48307]
[1642013566772,6.75,3370.1,3369.1,0.57334]
[1642013566974,0.01242862,3369.6,3368.6,3.9094]
[1642013567274,0.01242862,3369.6,3368.7,0.00454739]
[1642013567473,0.1187,3369.5,3368.9,1.48373]
[1642013567671,1.0183,3369.5,3368.9,1.48373]
[1642013567876,1.3183,3369.5,3369.2,1.48277988]
[1642013568076,1.0183,3369.5,3369.2,1.48277988]
[1642013568372,1.0183,3369.5,3369.3,0.00113685]
[1642013568572,0.8996,3369.5,3369.3,0.00113685]
[1642013568772,0.3984,3369.6,3369.3,0.00113685]
[1642013568973,1.49401614,3369.6,3369.3,0.74301685]
[1642013569376,1.49401614,3369.6,3369.3,1.74301685]
[1642013569577,1.49401614,3369.6,3369.3,0.74301685]
[1642013570831,1.49401614,3369.6,3369.3,0.78125502]
[1642013571026,1.49401614,3369.6,3369.3,0.74301685]
[1642013571231,0.00284211,3370.0,3369.3,0.74301685]
[1642013571531,0.00227369,3369.9,3369.3,0.74301685]
[1642013571730,0.00227369,3369.9,3369.3,1.41054155]
[1642013571929,5.4075759,3370.1,3369.3,0.74301685]
[1642013571930,0.00170527,3369.8,3369.3,0.74301685]
[1642013572334,0.00113684,3369.7,3369.3,0.00113685]
[1642013572532,0.1187,3369.6,3369.3,0.00113685]
[1642013572733,0.1187,3369.6,3368.7,1.55805]
[1642013572933,0.1187,3369.6,3369.0,0.00284212]
[1642013573135,0.1187,3369.6,3368.8,0.00397897]
[1642013573332,0.1187,3369.6,3369.2,1.4270438]
[1642013573532,0.1187,3369.6,3369.5,1.09758843]
[1642013573732,0.1187,3369.6,3369.5,1.83941843]
[1642013574984,0.00113684,3369.7,3369.5,1.83941843]
[1642013579132,0.00113684,3369.7,3369.5,2.50691663]
[1642013580332,0.00113684,3369.7,3369.5,2.58108663]
[1642013580837,0.00113684,3369.7,3369.5,2.88108663]
[1642013581973,0.00113684,3369.7,3369.5,2.58108663]
[1642013582977,3.00113684,3369.7,3369.5,2.58108663]
[1642013583382,7.73401614,3370.4,3369.7,5.85]
[1642013583580,1.49401614,3370.4,3369.9,1.26705]
[1642013583778,1.49401614,3370.4,3370.1,0.667222]
[1642013583978,1.05301887,3370.7,3370.3,2.7]
[1642013584178,1.50036411,3370.5,3370.2,0.425]
[1642013584378,0.00397897,3370.4,3370.3,5.75133052]
[1642013584577,4.53004182,3371.0,3370.6,0.07414]
[1642013584778,4.53004182,3371.0,3370.7,1.9076]
[1642013585080,4.0662,3371.2,3370.8,3.05]
[1642013585336,3.73504035,3371.5,3370.8,3.86398474]
[1642013585540,3.73504035,3371.5,3371.0,0.14824]
[1642013585734,3.73504035,3371.5,3371.3,1.2808793]
[1642013585939,0.00170527,3371.4,3371.2,1.2457486]
[1642013586237,4.0032,3371.9,3371.3,1.49155978]
[1642013586635,0.00170527,3371.4,3371.3,1.49155978]
[1642013587037,0.00170527,3371.4,3371.3,2.23277978]
[1642013590382,0.00170527,3371.4,3371.3,3.23277978]
[1642013590582,2.54340701,3371.8,3371.6,0.7411]
[1642013590781,2.54340701,3371.8,3371.6,2.27108654]
[1642013590984,2.54340701,3371.8,3371.6,2.57108654]
[1642013591380,2.54340701,3371.8,3371.7,1.0]
[1642013591582,2.54340701,3371.8,3371.7,2.41561229]
[1642013594031,0.1186,3372.5,3371.8,6.8]
[1642013594233,4.09606961,3372.6,3372.3,0.6668853]
[1642013594234,4.0838,3372.6,3372.3,0.6668853]
[1642013594435,0.00397897,3372.4,3372.3,0.6668853]
[1642013594633,2.2466216,3372.7,3372.4,0.3]
[1642013594833,2.2466216,3372.7,3372.6,15.002]
[1642013595135,2.2466216,3372.7,3372.6,16.09811589]
[1642013595537,1.49950073,3372.9,3372.8,1.26843678]
[1642013596033,1.49950073,3372.9,3372.6,15.002]
[1642013596238,0.1184,3372.8,3372.6,15.002]
[1642013596555,0.12067369,3372.8,3372.6,15.002]
[1642013597479,0.12067369,3372.8,3372.6,10.93384691]
[1642013599385,1.62017442,3372.8,3372.6,10.93384691]
[1642013599583,1.92017442,3372.8,3372.6,10.93384691]
[1642013599786,1.92017442,3372.8,3370.9,0.66831075]
[1642013599787,0.01284599,3372.7,3370.9,0.66831075]
[1642013599992,0.01299223,3371.2,3370.9,0.00113685]
[1642013600242,0.01299223,3371.2,3371.0,0.00795793]
[1642013600243,0.90499223,3371.2,3371.0,0.00795793]
[1642013600445,0.90499223,3371.2,3370.7,0.0096632]
[1642013600645,0.892,3371.2,3370.8,4.06751968]
[1642013601044,0.892,3371.2,3370.9,0.74983636]
[1642013601448,0.892,3371.2,3371.0,0.00795793]
[1642013603747,4.0017,3371.8,3371.0,0.74922553]
[1642013603982,1.50241049,3372.3,3371.4,0.74124]
[1642013604183,2.10241049,3372.3,3371.4,0.74124]
[1642013604384,2.10241049,3372.3,3371.5,0.00511581]
[1642013604584,0.1186,3372.2,3371.5,0.00511581]
[1642013604985,0.1186,3372.2,3371.8,0.74128]
[1642013605385,0.1186,3372.2,3371.9,0.00284212]
[1642013605587,0.01286616,3372.3,3371.9,0.00284212]
[1642013605984,0.1186,3372.2,3371.9,0.00284212]
[1642013606186,0.1186,3372.2,3371.7,0.00397897]
[1642013606984,0.1186,3372.2,3371.4,0.00568424]
[1642013607189,0.1186,3372.2,3371.4,1.20539283]
[1642013607586,0.85998,3372.2,3371.5,0.00511581]
[1642013608028,0.3,3372.1,3371.5,0.00511581]
[1642013608831,0.1186,3372.0,3371.5,0.00511581]
[1642013609031,0.1186,3372.0,3371.4,0.00568424]
[1642013609632,0.86003,3372.0,3371.4,0.00568424]
[1642013609831,0.74143,3372.0,3371.4,0.00568424]
[1642013612787,0.74143,3372.0,3371.4,1.18937128]
[1642013613088,0.74143,3372.0,3371.5,0.00511581]
[1642013613490,0.1186,3372.2,3371.5,0.00511581]
[1642013613788,0.1186,3372.2,3371.5,0.74646581]
[1642013614188,0.1186,3372.2,3371.6,0.00454739]
[1642013614392,1.53322704,3372.1,3371.6,0.00454739]
[1642013614790,1.83322704,3372.1,3371.6,0.00454739]
[1642013616034,1.53322704,3372.0,3371.7,0.74132]
[1642013616244,1.53322704,3372.0,3371.8,1.31931725]
[1642013616435,1.53322704,3372.0,3371.8,1.32272779]
[1642013616736,1.53322704,3372.0,3371.9,0.00284212]
[1642013616939,1.53322704,3372.1,3371.9,0.00284212]
[1642013617133,1.53322704,3372.1,3371.9,0.74411212]
[1642013617534,1.53322704,3372.1,3372.0,0.0022737]
[1642013617737,1.53322704,3372.2,3372.0,0.0022737]
[1642013621985,6.2686,3372.1,3372.0,0.0022737]
[1642013622188,6.2686,3372.1,3371.9,0.00284212]
[1642013623034,6.5686,3372.1,3371.9,0.00284212]
[1642013623233,4.58322704,3372.0,3371.9,0.00284212]
[1642013623633,6.8,3371.9,3371.3,1.48265]
[1642013623834,4.58322704,3372.0,3370.2,0.1112]
[1642013623835,17.3,3371.8,3370.2,0.1112]
[1642013624035,0.74155,3371.5,3371.4,0.00284212]
[1642013624437,0.74155,3371.5,3370.0,1.3]
[1642013624438,0.98145,3371.5,3370.1,0.01023162]
[1642013624636,18.58145,3371.5,3370.4,1.30870876]
[1642013624839,18.58145,3371.5,3371.1,1.5274159]
[1642013624840,0.3,3371.4,3371.1,1.5274159]
[1642013625037,0.1186,3371.3,3371.1,1.5274159]
[1642013625238,2.3433563,3371.3,3371.2,0.00397897]
[1642013625440,2.6433563,3371.3,3371.2,0.00397897]
[1642013625643,3.6433563,3371.3,3371.2,0.00397897]
[1642013625842,7.2933563,3371.3,3371.2,0.00397897]
[1642013626140,23.8517663,3371.3,3370.7,0.00682108]
[1642013626347,0.74164,3371.2,3370.7,0.00682108]
[1642013626599,0.74164,3371.1,3370.5,0.00795793]
[1642013627404,0.74164,3371.1,3370.4,0.8684774]
[1642013627700,0.00284212,3371.0,3370.9,1.20736859]
[1642013627904,1.53606916,3371.0,3370.9,1.20736859]
[1642013628713,0.74167,3370.9,3370.3,0.74164]
[1642013628908,0.74171,3370.8,3370.1,0.74169]
[1642013629106,0.12030527,3370.8,3369.9,1.4833]
[1642013629307,0.00113685,3370.7,3370.2,0.00170527]
[1642013630343,3.0275168,3370.7,3370.3,1.49961302]
[1642013630544,0.4186,3370.6,3370.3,1.49961302]
[1642013630746,0.1186,3370.6,3370.3,1.49961302]
[1642013630943,0.4186,3370.6,3370.3,1.49961302]
[1642013631143,0.1186,3370.6,3370.3,1.49961302]
[1642013631542,0.74176,3370.5,3370.3,1.49961302]
[1642013631743,2.74720487,3370.4,3370.3,1.49961302]
[1642013632144,2.74720487,3370.4,3370.3,1.50074987]
[1642013632748,4.28043191,3370.4,3370.3,1.50074987]
[1642013632952,1.53322704,3370.4,3370.3,1.50074987]
[1642013633848,1.53322704,3370.4,3370.3,2.24240987]
[1642013634788,0.00113685,3370.7,3370.3,2.24240987]
[1642013635388,0.00113685,3370.7,3370.5,1.20814672]
[1642013635588,0.00113685,3370.7,3370.6,0.74153]
[1642013636594,0.00113685,3370.7,3370.6,7.74153]
[1642013637591,0.00113685,3370.7,3370.6,1.74153]
[1642013637842,3.00113685,3370.7,3370.6,1.74153]
[1642013638039,3.00113685,3370.7,3370.6,2.04153]
[1642013638441,3.00113685,3370.7,3370.6,0.74153]
[1642013639739,4.53436389,3370.7,3370.6,0.74153]
[1642013642484,4.83436389,3370.7,3370.6,0.74153]
[1642013642683,4.53436389,3370.7,3370.6,0.74153]
[1642013643084,4.53436389,3370.7,3370.6,1.88631735]
[1642013647234,4.49593996,3370.7,3370.6,1.88631735]
[1642013648137,4.49593996,3370.7,3370.6,0.74153]
[1642013655343,4.49593996,3370.7,3370.4,0.74163]
[1642013655344,8.15069818,3370.7,3370.4,0.74163]
[1642013655548,8.15069818,3370.7,3370.3,0.00113685]
[1642013655549,8.86929818,3370.7,3370.3,0.00113685]
[1642013655747,8.86929818,3370.7,3370.5,0.00113685]
[1642013655748,13.01759818,3370.7,3370.5,0.00113685]
[1642013655948,7.11804066,3370.6,3369.4,0.00738951]
[1642013656145,0.1186,3370.5,3369.5,1.38168617]
[1642013656596,0.86032,3370.5,3370.2,1.21107823]
[1642013656796,2.92954086,3370.4,3370.2,1.21107823]
[1642013656997,0.1186,3370.3,3370.2,1.21107823]
[1642013657400,0.1186,3370.3,3370.2,1.21392035]
[1642013657598,2.93230629,3370.3,3370.2,1.21392035]
[1642013658399,2.93230629,3370.3,3370.2,0.00284212]
[1642013658400,4.46553333,3370.3,3370.2,0.00284212]
[1642013658802,4.46553333,3370.3,3370.1,0.74171]
[1642013659000,4.34693333,3370.3,3370.1,0.74171]
[1642013659403,1.53322704,3370.3,3370.1,1.83967727]
[1642013659603,2.74541624,3370.2,3370.1,1.83967727]
[1642013659804,1.53322704,3370.3,3370.1,1.83967727]
[1642013660006,1.53322704,3370.3,3370.1,1.84308781]
[1642013660248,3.03773268,3370.4,3370.1,1.84308781]
[1642013660249,1.53322704,3370.2,3370.1,1.84308781]
[1642013661038,1.65182704,3370.4,3370.1,1.84308781]
[1642013661242,2.81695594,3370.3,3370.1,1.84308781]
[1642013662538,2.76543312,3370.3,3370.1,1.84308781]
[1642013662739,1.53322704,3370.4,3370.1,1.84308781]
[1642013663038,1.53322704,3370.2,3370.1,1.84308781]
[1642013664494,1.53322704,3370.4,3370.1,1.84308781]
[1642013664894,2.78504476,3370.3,3370.1,1.84308781]
[1642013666096,1.53322704,3370.2,3370.1,1.79308781]
[1642013666898,1.49315291,3370.5,3370.1,1.79308781]
[1642013667296,1.49315291,3370.5,3370.1,3.17506604]
[1642013667738,1.53322704,3370.4,3370.1,3.17506604]
[1642013669537,1.53322704,3370.6,3370.1,3.17506604]
[1642013671589,1.53322704,3370.6,3370.2,0.07416]
[1642013671987,1.53322704,3370.6,3370.4,0.74159]
[1642013672389,1.53322704,3370.6,3370.5,0.00113685]
[1642013691139,3.02637995,3370.6,3370.5,0.00113685]
[1642013691739,3.14497995,3370.6,3370.5,0.00113685]
[1642013693844,3.02637995,3370.6,3370.5,0.00113685]
[1642013700041,3.53529847,3370.6,3370.5,0.00113685]
[1642013700643,2.04214556,3370.6,3370.5,0.00113685]
[1642013700846,4.89214556,3370.6,3370.5,0.00113685]
[1642013701485,7.13876716,3370.6,3370.5,0.00113685]
[1642013703092,7.13876716,3370.6,3370.3,0.0022737]
[1642013703690,9.54525402,3370.6,3370.3,0.7439737]
[1642013703892,24.43876716,3370.6,3370.1,0.00341054]
[1642013704095,24.43876716,3370.6,3369.5,0.74178]
[1642013704096,6.8,3370.4,3369.5,0.74178]
[1642013704293,6.8,3370.4,3369.9,0.00284212]
[1642013704294,0.5436,3370.3,3369.9,0.00284212]
[1642013704494,17.5108,3370.2,3369.9,0.00284212]
[1642013704695,17.5108,3370.2,3369.2,0.00682108]
[1642013704696,0.01232562,3370.0,3369.2,0.00682108]
[1642013704895,0.74201,3369.8,3369.2,0.00682108]
[1642013705095,0.1187,3369.7,3369.2,0.00682108]
[1642013705945,0.86072,3369.7,3369.2,0.3444711]
[1642013706347,0.1187,3369.7,3369.3,0.00625266]
[1642013707146,0.1187,3369.8,3369.1,1.47514565]
[1642013707352,0.00170527,3369.6,3369.1,1.47514565]
[1642013707747,1.4711197,3369.5,3369.2,1.52270656]
[1642013708147,1.46998285,3369.5,3369.2,0.74191]
[1642013708747,0.01274508,3369.7,3369.1,1.47514565]
[1642013709395,3.0,3369.5,3369.1,2.21707565]
[1642013713948,3.0,3369.5,3369.3,0.7418]
[1642013716995,3.0,3369.5,3369.1,1.47514565]
[1642013716996,3.0,3369.5,3369.1,2.21707565]
[1642013719501,3.0,3369.5,3369.1,3.44093477]
[1642013720940,3.0,3369.5,3369.1,3.51512477]
[1642013721141,3.0,3369.5,3369.3,0.74182]
[1642013721941,3.0,3369.5,3369.3,1.4094285]
[1642013722341,3.0,3369.5,3369.3,0.74182]
[1642013726004,3.0,3369.5,3369.3,1.4094267]
[1642013727505,2.43390039,3369.4,3369.3,0.74182]
[1642013729147,2.43390039,3369.4,3369.3,0.74182]
[1642013732997,3.0,3369.5,3369.3,0.74182]
[1642013734001,3.0,3369.5,3369.3,1.4094064]
[1642013734205,0.1187,3369.4,3369.3,0.74182]
[1642013735004,3.0,3369.5,3369.3,0.74182]
[1642013735740,0.1187,3369.8,3369.6,0.74174]
[1642013735942,5.46434062,3369.9,3369.6,0.74174]
[1642013735943,4.22124062,3369.9,3369.6,0.74174]
[1642013736141,0.00227369,3369.7,3369.6,0.74174]
[1642013736342,4.21783008,3369.9,3369.6,1.4092987]
[1642013736541,4.21783008,3369.9,3369.6,1.41043555]
[1642013736742,4.21783008,3369.9,3369.8,1.48987985]
[1642013736949,1.58868285,3370.2,3369.8,1.48987985]
[1642013737142,1.46998285,3370.2,3369.9,1.48326]
[1642013737344,0.00170527,3370.1,3369.9,2.1507332]
[1642013737541,2.19285598,3370.3,3369.9,2.1507332]
[1642013737742,2.19285598,3370.3,3370.0,0.74163]
[1642013737942,2.19285598,3370.3,3370.1,2.22191895]
[1642013738344,4.0276,3370.7,3370.1,2.22191895]
[1642013738745,4.0276,3370.7,3370.4,0.74167]
[1642013738992,4.0276,3370.7,3370.4,2.225]
[1642013739603,3.909,3370.7,3370.5,0.6674959]
[1642013739798,3.909,3370.7,3370.5,1.4091659]
[1642013740401,24.209,3370.7,3370.5,1.4091659]
[1642013741101,6.909,3370.7,3370.5,1.4091659]
[1642013742303,8.37898285,3370.7,3370.5,1.4833359]
[1642013742943,6.909,3370.7,3370.5,1.4833359]
[1642013744752,8.37898285,3370.7,3370.5,1.4833359]
[1642013744945,4.35,3370.6,3370.4,1.43720273]
[1642013745145,8.37898285,3370.7,3370.4,1.43720273]
[1642013745346,0.00227369,3370.5,3370.4,1.43720273]
[1642013745548,0.00227369,3370.5,3370.4,2.17887273]
[1642013746996,0.00227369,3370.5,3370.4,1.43720273]
[1642013746997,0.12087369,3370.5,3370.4,1.43720273]
[1642013747399,18.42087369,3370.5,3370.4,1.43720273]
[1642013747593,18.72087369,3370.5,3370.4,1.43720273]
[1642013748393,20.91372967,3370.5,3370.4,1.43720273]
[1642013750744,22.86035127,3370.5,3370.4,1.43720273]
[1642013750939,22.74175127,3370.5,3370.4,1.43720273]
[1642013752240,20.49512967,3370.5,3370.4,1.43720273]
[1642013752943,3.49512967,3370.5,3370.4,1.43720273]
[1642013753744,3.19512967,3370.5,3370.4,1.43720273]
[1642013753992,3.47342736,3370.5,3370.4,1.43720273]
[1642013754894,4.66628334,3370.5,3370.4,1.43720273]
[1642013755496,21.96628334,3370.5,3370.4,1.43720273]
[1642013755694,19.77342736,3370.5,3370.4,1.43720273]
[1642013756500,21.96628334,3370.5,3370.4,1.43720273]
[1642013756896,4.66628334,3370.5,3370.4,1.43720273]
[1642013757299,4.66628334,3370.5,3370.4,5.53720273]
[1642013757500,4.66628334,3370.5,3370.4,5.65580273]
[1642013757750,4.66628334,3370.5,3370.4,1.55580273]
[1642013758445,2.47115367,3370.6,3370.4,1.55580273]
[1642013758648,2.47115367,3370.6,3370.5,0.1186]
[1642013758845,2.47115367,3370.6,3370.5,0.86012]
[1642013763493,2.47115367,3370.6,3370.5,0.74152]
[1642013766866,1.44282546,3370.8,3370.7,7.54132]
[1642013767061,2.19285598,3371.2,3370.8,6.8]
[1642013767262,2.99549546,3371.3,3370.9,4.35]
[1642013767464,2.99549546,3371.3,3370.9,7.9082049]
[1642013767665,2.55888186,3371.3,3371.0,4.35]
[1642013768163,2.55888186,3371.3,3371.1,1.24361495]
[1642013768363,0.1186,3371.4,3371.1,1.24361495]
[1642013768571,0.1186,3371.4,3371.2,1.55925329]
[1642013768874,7.41272177,3372.5,3371.2,1.55925329]
[1642013768875,4.22595974,3374.3,3372.7,0.07409]
[1642013769112,4.22595974,3374.3,3374.2,0.01205964]
[1642013769419,0.1184,3374.2,3372.7,0.61802769]
[1642013769608,0.1184,3374.2,3373.1,0.74107]
[1642013769814,0.50851013,3374.1,3373.1,0.74107]
[1642013770010,0.1184,3374.0,3373.5,0.6668259]
[1642013770211,0.13431586,3374.0,3373.5,0.07409]
[1642013770412,0.13431586,3374.0,3372.6,7.56331792]
[1642013770413,0.01534744,3373.9,3372.6,7.56331792]
[1642013770610,0.1184,3373.8,3373.3,1.48196]
[1642013770810,1.40519667,3373.8,3373.3,1.48196]
[1642013771009,0.01421059,3373.7,3373.3,1.48196]
[1642013771215,0.1184,3373.6,3373.3,1.48196]
[1642013771410,0.13204217,3373.6,3373.3,1.48196]
[1642013771620,0.01307374,3373.5,3373.3,1.48196]
[1642013771810,0.1184,3373.4,3373.3,1.48196]
[1642013772010,0.01250532,3373.4,3373.3,1.48196]
[1642013772211,0.01250532,3373.4,3373.0,0.74632249]
[1642013772609,0.0119369,3373.3,3373.0,0.74632249]
[1642013773051,0.01136847,3373.2,3373.0,0.74632249]
[1642013773449,0.1184,3373.7,3373.0,0.74632249]
[1642013773450,0.01080005,3373.1,3373.0,0.74632249]
[1642013774061,0.1184,3373.7,3373.0,10.85945471]
[1642013774258,0.1184,3373.7,3373.1,0.01067041]
[1642013774459,0.00284212,3373.6,3373.2,0.5434]
[1642013774857,0.00227369,3373.5,3373.2,0.8434]
[1642013775159,1.11996447,3374.2,3373.4,5.84388459]
[1642013775361,0.1184,3374.1,3373.5,0.425]
[1642013775560,0.1184,3374.1,3373.6,0.425]
[1642013775759,0.1184,3374.1,3373.2,2.8152025]
[1642013775760,0.1184,3374.1,3373.2,1.3335525]
[1642013775960,0.0684,3374.1,3373.2,1.3335525]
[1642013776160,0.37051128,3374.1,3373.6,1.48177]
[1642013776792,0.30211128,3374.1,3373.6,1.48177]
[1642013777193,0.1184,3374.0,3373.6,1.48177]
[1642013777594,0.00454739,3373.9,3373.6,1.48177]
[1642013777998,0.00397896,3373.8,3373.6,1.48177]
[1642013778298,0.42051128,3374.1,3373.6,1.48177]
[1642013778299,0.00341054,3373.7,3373.6,1.48177]
[1642013779101,0.00341054,3373.7,3373.5,1.48182]
[1642013779499,0.00284212,3373.6,3373.5,1.48182]
[1642013779903,0.00284212,3373.6,3373.5,2.1486434]
[1642013780510,0.00284212,3373.6,3373.1,0.1184]
[1642013780705,0.00284212,3373.6,3372.8,1.90705]
[1642013780706,0.00284212,3373.6,3372.8,1.48205]
[1642013780908,0.00227369,3373.5,3372.8,1.48205]
[1642013781104,0.00227369,3373.5,3372.9,0.00113684]
[1642013781306,1.4184,3373.9,3372.9,0.00113684]
[1642013781307,1.34597526,3373.2,3372.9,0.00113684]
[1642013781905,4.97657896,3373.8,3372.9,0.00113684]
[1642013782106,4.97657896,3373.8,3373.0,0.74105]
[1642013782306,0.00341054,3373.7,3373.0,0.74105]
[1642013782705,0.00284212,3373.6,3373.0,0.74105]
[1642013783107,1.48490151,3373.4,3373.0,0.74105]
[1642013783307,0.00227369,3373.5,3373.0,0.74105]
[1642013783506,0.00113685,3373.3,3373.0,0.74105]
[1642013783707,0.00170527,3373.4,3373.0,0.74105]
[1642013783906,0.00341054,3373.7,3373.0,0.74105]
[1642013784113,4.9726,3373.8,3373.0,0.74105]
[1642013784114,0.00113685,3373.3,3373.2,0.666873]
[1642013784308,1.15680801,3373.6,3373.4,0.74094]
[1642013784506,1.15396589,3373.6,3373.4,0.74094]
[1642013787112,0.1184,3373.9,3373.4,0.74094]
[1642013787311,0.1184,3374.0,3373.4,0.74094]
[1642013787515,0.00397896,3373.8,3373.4,0.74094]
[1642013787952,0.00341054,3373.7,3373.4,0.74094]
[1642013788356,0.00284212,3373.6,3373.4,0.74094]
[1642013788755,2.50227369,3373.5,3373.0,0.1184]
[1642013788957,1.0,3373.4,3372.9,0.00113684]
[1642013789157,0.1184,3373.3,3372.9,0.00113684]
[1642013789360,0.1184,3373.3,3372.7,0.00227369]
[1642013789361,17.71953685,3373.3,3372.7,0.00227369]
[1642013789556,1.02926751,3373.2,3372.2,0.00511581]
[1642013789757,1.4959744,3372.6,3371.9,1.36325568]
[1642013789956,1.4959744,3372.6,3372.0,0.1186]
[1642013790156,0.02763549,3372.5,3372.0,0.00625266]
[1642013790354,0.02763549,3372.5,3371.5,4.83683761]
[1642013790355,0.02763549,3372.5,3372.1,0.00568423]
[1642013790555,0.02763549,3372.5,3371.9,0.00682108]
[1642013790758,0.02763549,3372.5,3371.5,4.83683761]
[1642013790759,1.4959744,3372.6,3372.0,0.85988]
[1642013790957,1.4959744,3372.6,3372.0,0.74128]
[1642013791255,1.4959744,3372.6,3372.1,0.00568423]
[1642013792607,0.02699853,3372.5,3372.1,0.00568423]
[1642013793211,0.5543,3372.9,3372.3,0.02073708]
[1642013793212,0.1186,3372.9,3372.3,0.02073708]
[1642013793407,0.1186,3372.9,3372.4,0.425]
[1642013793608,0.1186,3372.9,3372.4,0.42897896]
[1642013793807,0.1186,3372.9,3372.5,0.00341054]
[1642013794010,0.1186,3372.9,3372.6,0.425]
[1642013794215,0.1186,3372.9,3372.6,1.16595]
[1642013794425,0.1186,3372.9,3372.7,0.12067369]
[1642013794615,1.29874521,3373.1,3372.7,0.00227369]
[1642013794813,0.1184,3373.0,3372.8,0.00170527]
[1642013795014,0.1184,3373.0,3372.7,0.00227369]
[1642013795251,0.1184,3373.0,3372.6,0.00284212]
[1642013795656,0.1184,3373.0,3372.2,0.00511581]